fUSD/lending_fUSD_20250519
["ID","MTS","AMOUNT","RATE_DAILY","PERIOD"]
[361639561,1747657826991,-151.92046913,0.0001185,2]
[361639562,1747657828981,-189.68502545,0.0001185,2]
[361639572,1747657831943,-1357.01280497,0.0001185,2]
[361639573,1747657831952,-2751.0,0.0001191,2]
[361639574,1747657831961,-1000.0,0.00011916,2]
[361639575,1747657831971,-526.64039059,0.00011922,2]
[361639576,1747657831980,-300.0,0.00011999,2]
[361639577,1747657831990,-150.0,0.00011999,2]
[361639578,1747657831999,-1200.0,0.00011999,2]
[361639579,1747657832009,-273.83589275,0.00011999,2]
[361639580,1747657832018,-98535.58810373,0.00012,2]
[361639581,1747657832028,-556.01755039,0.00012002,2]
[361639582,1747657832038,-200.0,0.00012002,2]
[361639583,1747657832047,-1198.1773013,0.00012006,2]
[361639584,1747657832056,-23900.0,0.00012006,2]
[361639585,1747657832065,-6683.74,0.0001203,2]
[361639586,1747657832075,-180.97,0.00012042,2]
[361639587,1747657832084,-10375.12,0.00012053,2]
[361639588,1747657832093,-150.0,0.00012056,2]
[361639589,1747657832102,-250.0,0.00012223,2]
[361639590,1747657832112,-150.0,0.00012259,2]
[361639591,1747657832121,-153.91,0.00012271,2]
[361639592,1747657832131,-547.08,0.00012281,2]
[361639593,1747657832140,-200.0,0.00012293,2]
[361639594,1747657832149,-810.35,0.00012309,2]
[361639595,1747657832159,-845.85,0.00012311,2]
[361639596,1747657832168,-550.82,0.00012322,2]
[361639597,1747657832177,-152.0,0.00012353,2]
[361639598,1747657832186,-736.55,0.00012591,2]
[361639599,1747657832195,-255.55,0.00012664,2]
[361639600,1747657832205,-255.55,0.00012668,2]
[361639601,1747657832215,-4000.0,0.00012669,2]
[361639602,1747657832225,-255.55,0.00012671,2]
[361639603,1747657832235,-255.55,0.00012674,2]
[361639604,1747657832244,-255.55,0.00012678,2]
[361639605,1747657832253,-255.55,0.00012681,2]
[361639606,1747657832262,-255.55,0.00012684,2]
[361639607,1747657832272,-255.55,0.00012688,2]
[361639608,1747657832281,-255.55,0.00012691,2]
[361639609,1747657832291,-255.55,0.00012694,2]
[361639610,1747657832300,-255.55,0.00012698,2]
[361639611,1747657832310,-255.55,0.00012701,2]
[361639612,1747657832319,-255.55,0.00012704,2]
[361639613,1747657832327,-255.55,0.00012708,2]
[361639615,1747657832337,-159.08,0.0001271,2]
[361639617,1747657832346,-255.55,0.00012711,2]
[361639619,1747657832355,-255.55,0.00012714,2]
[361639621,1747657832364,-255.55,0.00012718,2]
[361639623,1747657832374,-255.55,0.00012721,2]
[361639625,1747657832384,-255.55,0.00012724,2]
[361639627,1747657832393,-255.55,0.00012728,2]
[361639629,1747657832403,-613.55,0.00012743,2]
[361639631,1747657832412,-203.46109068,0.000129,2]
[361639633,1747657832421,-805.14,0.00012941,2]
[361639635,1747657832430,-805.14,0.00012941,2]
[361639637,1747657832439,-1610.28,0.00012941,2]
[361639639,1747657832449,-700.0,0.00013,4]
[361639641,1747657832462,-157.66,0.00013,2]
[361639643,1747657832471,-157.66,0.00013,2]
[361639645,1747657832480,-157.66,0.00013,2]
[361639647,1747657832489,-157.66,0.00013,2]
[361639649,1747657832499,-157.66,0.00013,2]
[361639651,1747657832508,-151.0,0.0001304,2]
[361639653,1747657832517,-155.0,0.0001304,2]
[361639655,1747657832526,-151.0,0.0001304,2]
[361639657,1747657832536,-668.65185757,0.0001304,2]
[361639659,1747657832545,-668.65185757,0.0001304,2]
[361639661,1747657832555,-207.4,0.0001304,2]
[361639662,1747657832564,-203.46109064,0.00013067,2]
[361639664,1747657832573,-397.77601132,0.00013078,2]
[361639666,1747657832582,-255.0,0.00013079,2]
[361639668,1747657832592,-1400.0,0.000131,4]
[361639670,1747657832601,-200.0,0.00013101,2]
[361639672,1747657832610,-420.0,0.00013172,2]
[361639674,1747657832620,-2087.66,0.00013178,2]
[361639676,1747657832630,-150.22,0.00013178,2]
[361639678,1747657832639,-300.0,0.00013178,2]
[361639680,1747657832648,-320.13,0.00013178,2]
[361639682,1747657832658,-453.11,0.00013178,2]
[361639684,1747657832667,-170.07,0.00013178,2]
[361639686,1747657832676,-170.07,0.00013178,2]
[361639689,1747657832686,-453.11,0.00013178,2]
[361639692,1747657832695,-150.25,0.00013178,2]
[361639694,1747657832705,-170.07,0.00013178,2]
[361639696,1747657832714,-453.11,0.00013178,2]
[361639698,1747657832723,-169.71,0.00013178,2]
[361639700,1747657832733,-453.11,0.00013178,2]
[361639702,1747657832742,-453.11,0.00013178,2]
[361639704,1747657832751,-150.3,0.00013178,2]
[361639706,1747657832760,-353.24,0.00013178,2]
[361639708,1747657832770,-453.11,0.00013178,2]
[361639710,1747657832779,-1680.0,0.00013199,2]
[361639712,1747657832789,-2100.0,0.000132,4]
[361639714,1747657832798,-203.46109064,0.00013233,2]
[361639716,1747657832807,-2800.0,0.000133,4]
[361639718,1747657832817,-203.46109064,0.000134,2]
[361639720,1747657832826,-3500.0,0.000134,4]
[361639722,1747657832835,-1000.0,0.00013405,2]
[361639724,1747657832844,-706.68,0.00013412,2]
[361639726,1747657832854,-205.0,0.00013427,2]
[361639728,1747657832864,-700.0,0.000135,4]
[361639730,1747657832875,-287.9563697,0.00013522,2]
[361639732,1747657832884,-203.46109064,0.00013567,2]
[361639734,1747657832893,-151.0,0.00013588,2]
[361639736,1747657832903,-693.3919763,0.00013588,2]
[361639738,1747657832912,-258.2,0.00013598,2]
[361639739,1747657832922,-1288.8739,0.00013598,2]
[361639742,1747657832932,-587.6822185,0.00013598,2]
[361639744,1747657832942,-158.2394192,0.00013598,2]
[361639745,1747657832951,-167.87877207,0.00013598,2]
[361639746,1747657832960,-5363.54488188,0.00013598,2]
[361639748,1747657832969,-28341.2463,0.00013598,2]
[361639750,1747657832978,-700.0,0.000136,4]
[361639752,1747657832988,-1000.0,0.00013601,2]
[361639754,1747657832997,-171.86,0.00013608,2]
[361639756,1747657833007,-150.0,0.00013611,2]
[361639758,1747657833016,-864.76119748,0.00013617,2]
[361639760,1747657833026,-5363.54488183,0.00013632,2]
[361639762,1747657833035,-200.0,0.00013632,2]
[361639764,1747657833044,-11352.41354505,0.0001365,2]
[361639773,1747657833114,-1027.4264,0.0001365,2]
[361639776,1747657833142,-343.79555923,0.0001365,2]
[361639779,1747657833154,-5423.2495,0.0001365,2]
[361639838,1747657838034,-799.999175,0.00013592,2]
[361639839,1747657838045,-508.000825,0.00013592,2]
[361639840,1747657838055,-154.0,0.00013592,2]
[361639841,1747657838064,-26.6277435,0.0001365,2]
[361639842,1747657838075,-1029.22745879,0.0001365,2]
[361639843,1747657838143,-2329.26541878,0.0001365,2]
[361640026,1747657839983,-3981.7326711,0.0001365,2]
[361640034,1747657840040,-162.48523969,0.00013558,2]
[361640036,1747657840050,-87771.19050267,0.0001365,2]
[361640038,1747657840059,-174.539,0.00013658,2]
[361640040,1747657840068,-1000.0,0.0001366,2]
[361640042,1747657840078,-1900.851,0.00013661,2]
[361640044,1747657840087,-5363.54488183,0.00013665,2]
[361640045,1747657840096,-500.0,0.00013673,2]
[361640047,1747657840105,-506.43454644,0.00013673,2]
[361640049,1747657840114,-160.37412854,0.00013673,2]
[361640051,1747657840123,-500.65759026,0.00013673,2]
[361640053,1747657840133,-500.0,0.00013673,2]
[361640055,1747657840143,-500.0,0.00013673,2]
[361640057,1747657840153,-500.0,0.00013673,2]
[361640059,1747657840162,-500.0,0.00013673,2]
[361640061,1747657840171,-186.87927986,0.00013673,2]
[361640063,1747657840180,-192.27324613,0.00013688,2]
[361640065,1747657840190,-187.02056026,0.00013689,2]
[361640067,1747657840199,-860.0,0.00013698,2]
[361640069,1747657840209,-397.81385688,0.00013698,2]
[361640071,1747657840218,-289684.17698208,0.00013698,2]
[361640073,1747657840228,-1398.973179,0.00013698,2]
[361640075,1747657840238,-151.0,0.00013698,2]
[361640077,1747657840248,-151.0,0.00013698,2]
[361640079,1747657840257,-151.0,0.00013698,2]
[361640081,1747657840267,-151.0,0.00013698,2]
[361640083,1747657840279,-400.0,0.00013698,2]
[361640085,1747657840288,-400.46386868,0.00013698,2]
[361640087,1747657840297,-381.29903057,0.00013698,2]
[361640093,1747657840345,-20.1557759,0.00013698,2]
[361640096,1747657840355,-400.0,0.00013698,2]
[361640098,1747657840364,-401.8395468,0.00013698,2]
[361640100,1747657840373,-401.4330044,0.00013698,2]
[361640102,1747657840383,-179.46611887,0.00013698,2]
[361640104,1747657840392,-401.79058086,0.00013698,2]
[361640105,1747657840401,-420.0,0.00013698,2]
[361640106,1747657840410,-400.0,0.00013698,2]
[361640107,1747657840420,-420.0,0.00013698,2]
[361640108,1747657840429,-472.13,0.00013698,2]
[361640109,1747657840439,-420.0,0.00013698,2]
[361640110,1747657840447,-420.0,0.00013698,2]
[361640111,1747657840461,-420.0,0.00013698,2]
[361640112,1747657840470,-420.0,0.00013698,2]
[361640113,1747657840480,-420.0,0.00013698,2]
[361640114,1747657840489,-420.0,0.00013698,2]
[361640115,1747657840499,-400.0,0.00013698,2]
[361640116,1747657840509,-420.0,0.00013698,2]
[361640117,1747657840518,-420.0,0.00013698,2]
[361640118,1747657840527,-420.0,0.00013698,2]
[361640120,1747657840537,-494.1,0.00013698,2]
[361640122,1747657840546,-151.0,0.00013698,2]
[361640123,1747657840555,-431.78,0.00013698,2]
[361640125,1747657840564,-420.0,0.00013698,2]
[361640127,1747657840573,-400.0,0.00013698,2]
[361640129,1747657840582,-420.0,0.00013698,2]
[361640131,1747657840591,-442.85,0.00013698,2]
[361640134,1747657840601,-420.0,0.00013698,2]
[361640136,1747657840610,-329.28411632,0.00013698,2]
[361640138,1747657840619,-385.15820895,0.00013698,2]
[361640139,1747657840629,-420.0,0.00013698,2]
[361640141,1747657840638,-320.0,0.00013698,2]
[361640143,1747657840647,-504.11,0.00013698,2]
[361640145,1747657840656,-420.0,0.00013698,2]
[361640147,1747657840665,-380.0,0.00013698,2]
[361640149,1747657840674,-250.0,0.00013698,2]
[361640151,1747657840683,-380.0,0.00013698,2]
[361640153,1747657840693,-420.0,0.00013698,2]
[361640155,1747657840702,-380.0,0.00013698,2]
[361640157,1747657840711,-480.77,0.00013698,2]
[361640159,1747657840721,-420.0,0.00013698,2]
[361640161,1747657840730,-469.38,0.00013698,2]
[361640163,1747657840740,-420.0,0.00013698,2]
[361640165,1747657840749,-380.0,0.00013698,2]
[361640167,1747657840758,-420.0,0.00013698,2]
[361640169,1747657840767,-420.0,0.00013698,2]
[361640171,1747657840776,-420.0,0.00013698,2]
[361640173,1747657840786,-206.60845682,0.00013698,2]
[361640175,1747657840795,-400.0,0.00013698,2]
[361640177,1747657840804,-380.0,0.00013698,2]
[361640179,1747657840813,-420.0,0.00013698,2]
[361640182,1747657840824,-420.0,0.00013698,2]
[361640183,1747657840833,-380.0,0.00013698,2]
[361640185,1747657840842,-345.73,0.00013698,2]
[361640187,1747657840851,-420.0,0.00013698,2]
[361640189,1747657840861,-262.23975148,0.00013698,2]
[361640195,1747657840902,-117.76024852,0.00013698,2]
[361640197,1747657840911,-682.03,0.00013698,2]
[361640199,1747657840920,-420.0,0.00013698,2]
[361640201,1747657840929,-400.0,0.00013698,2]
[361640203,1747657840939,-420.0,0.00013698,2]
[361640205,1747657840948,-400.0,0.00013698,2]
[361640207,1747657840957,-420.0,0.00013698,2]
[361640209,1747657840967,-420.0,0.00013698,2]
[361640211,1747657840976,-428.38,0.00013698,2]
[361640213,1747657840985,-420.0,0.00013698,2]
[361640215,1747657840994,-400.0,0.00013698,2]
[361640216,1747657841003,-420.0,0.00013698,2]
[361640218,1747657841012,-452.94,0.00013698,2]
[361640220,1747657841022,-448.71,0.00013698,2]
[361640222,1747657841031,-420.0,0.00013698,2]
[361640224,1747657841042,-151.0,0.00013698,2]
[361640226,1747657841052,-420.0,0.00013698,2]
[361640228,1747657841061,-420.0,0.00013698,2]
[361640230,1747657841070,-400.0,0.00013698,2]
[361640232,1747657841079,-151.0,0.00013698,2]
[361640234,1747657841088,-380.0,0.00013698,2]
[361640236,1747657841097,-380.0,0.00013698,2]
[361640238,1747657841106,-420.0,0.00013698,2]
[361640240,1747657841116,-420.0,0.00013698,2]
[361640242,1747657841125,-420.0,0.00013698,2]
[361640244,1747657841134,-420.0,0.00013698,2]
[361640246,1747657841144,-420.0,0.00013698,2]
[361640248,1747657841153,-496.04650507,0.00013698,2]
[361640250,1747657841163,-360.0,0.00013698,2]
[361640252,1747657841172,-400.0,0.00013698,2]
[361640254,1747657841181,-151.0,0.00013698,2]
[361640256,1747657841191,-403.16142023,0.00013698,2]
[361640258,1747657841200,-380.0,0.00013698,2]
[361640260,1747657841209,-222.52369619,0.00013698,2]
[361640262,1747657841222,-177.47630381,0.00013698,2]
[361640264,1747657841231,-444.12,0.00013698,2]
[361640266,1747657841240,-14.44620759,0.00013698,2]
[361640269,1747657841251,-405.55379241,0.00013698,2]
[361640271,1747657841261,-58.48016759,0.00013698,2]
[361640274,1747657841285,-361.51983241,0.00013698,2]
[361640276,1747657841294,-420.0,0.00013698,2]
[361640278,1747657841303,-24.65831598,0.00013698,2]
[361640280,1747657841314,-395.34168402,0.00013698,2]
[361640282,1747657841324,-380.0,0.00013698,2]
[361640284,1747657841333,-400.0,0.00013698,2]
[361640286,1747657841343,-524.16,0.00013698,2]
[361640288,1747657841352,-39.57777726,0.00013698,2]
[361640314,1747657841592,-28.31016051,0.00013698,2]
[361640482,1747657843209,-352.11206223,0.00013698,2]
[361640484,1747657843219,-420.0,0.00013698,2]
[361640486,1747657843228,-584.8,0.00013698,2]
[361640488,1747657843238,-420.0,0.00013698,2]
[361640490,1747657843247,-379.26043777,0.00013698,2]
[361640754,1747657845892,-453.11,0.00013178,2]
[361640756,1747657845902,-353.24,0.00013178,2]
[361640758,1747657845911,-150.3,0.00013178,2]
[361640760,1747657845920,-20.73956223,0.00013698,2]
[361640762,1747657845929,-400.0,0.00013698,2]
[361640764,1747657845938,-462.03,0.00013698,2]
[361640766,1747657845946,-420.0,0.00013698,2]
[361640767,1747657845955,-70.13971149,0.00013698,2]
[361640770,1747657845967,-349.86028851,0.00013698,2]
[361640772,1747657845976,-420.0,0.00013698,2]
[361640774,1747657845985,-206.44579982,0.00013698,2]
[361640777,1747657846004,-213.55420018,0.00013698,2]
[361640779,1747657846013,-420.0,0.00013698,2]
[361640781,1747657846024,-420.0,0.00013698,2]
[361640783,1747657846034,-151.0,0.00013698,2]
[361640785,1747657846043,-420.0,0.00013698,2]
[361640786,1747657846055,-420.0,0.00013698,2]
[361640788,1747657846064,-420.0,0.00013698,2]
[361640790,1747657846074,-703.68,0.00013698,2]
[361640792,1747657846083,-420.0,0.00013698,2]
[361640794,1747657846092,-508.17,0.00013698,2]
[361640796,1747657846101,-185.109697,0.00013698,2]
[361640798,1747657846111,-151.0,0.00013698,2]
[361640800,1747657846120,-420.0,0.00013698,2]
[361640802,1747657846129,-431.08,0.00013698,2]
[361640804,1747657846138,-420.0,0.00013698,2]
[361640806,1747657846147,-151.0,0.00013698,2]
[361640808,1747657846157,-425.63,0.00013698,2]
[361640810,1747657846166,-420.0,0.00013698,2]
[361640812,1747657846176,-380.0,0.00013698,2]
[361640814,1747657846186,-397.45210921,0.00013698,2]
[361640817,1747657846203,-22.54789079,0.00013698,2]
[361640819,1747657846213,-420.0,0.00013698,2]
[361640821,1747657846223,-522.29,0.00013698,2]
[361640823,1747657846233,-237.86360921,0.00013698,2]
[361640825,1747657846244,-162.13639079,0.00013698,2]
[361640827,1747657846254,-380.0,0.00013698,2]
[361640829,1747657846262,-420.0,0.00013698,2]
[361640831,1747657846271,-634.5,0.00013698,2]
[361640833,1747657846281,-151.0,0.00013698,2]
[361640835,1747657846290,-420.0,0.00013698,2]
[361640837,1747657846299,-400.0,0.00013698,2]
[361640839,1747657846308,-605.92,0.00013698,2]
[361640841,1747657846317,-151.0,0.00013698,2]
[361640843,1747657846326,-420.0,0.00013698,2]
[361640845,1747657846335,-420.0,0.00013698,2]
[361640847,1747657846345,-420.0,0.00013698,2]
[361640849,1747657846356,-420.0,0.00013698,2]
[361640851,1747657846365,-125.94360921,0.00013698,2]
[361640854,1747657846384,-294.05639079,0.00013698,2]
[361640856,1747657846393,-420.0,0.00013698,2]
[361640858,1747657846402,-400.0,0.00013698,2]
[361640860,1747657846413,-501.73,0.00013698,2]
[361640862,1747657846422,-151.0,0.00013698,2]
[361640864,1747657846432,-420.0,0.00013698,2]
[361640866,1747657846441,-500.0,0.00013698,2]
[361640868,1747657846451,-420.0,0.00013698,2]
[361640870,1747657846464,-360.0,0.00013698,2]
[361640872,1747657846473,-151.0,0.00013698,2]
[361640874,1747657846482,-426.09,0.00013698,2]
[361640876,1747657846491,-151.59446,0.00013698,2]
[361640878,1747657846504,-420.0,0.00013698,2]
[361640880,1747657846513,-420.0,0.00013698,2]
[361640882,1747657846526,-221.619349,0.00013698,2]
[361640884,1747657846537,-300.0,0.00013698,2]
[361640886,1747657846547,-370.09594008,0.00013698,2]
[361640888,1747657846556,-596.82,0.00013698,2]
[361640890,1747657846566,-221.619349,0.00013698,2]
[361640892,1747657846575,-516.1,0.00013698,2]
[361640894,1747657846585,-492.58958602,0.00013698,2]
[361640897,1747657846604,-518.00145494,0.00013698,2]
[361640899,1747657846613,-312.96582758,0.00013698,2]
[361640901,1747657846625,-107.03417242,0.00013698,2]
[361640903,1747657846636,-420.0,0.00013698,2]
[361640905,1747657846645,-420.0,0.00013698,2]
[361640907,1747657846654,-1130.91,0.00013698,2]
[361640909,1747657846665,-420.0,0.00013698,2]
[361640911,1747657846674,-467.53,0.00013698,2]
[361640913,1747657846683,-503.03502513,0.00013698,2]
[361640915,1747657846693,-400.0,0.00013698,2]
[361640917,1747657846702,-126.26482533,0.00013698,2]
[361640919,1747657846714,-253.52,0.00013698,2]
[361640933,1747657846835,-149.25517467,0.00013698,2]
[361640935,1747657846845,-234.90811533,0.00013698,2]
[361641985,1747658087614,165.36251176,0.00027,120]
[361641986,1747658099011,164.51533903,0.00027,120]
[361641987,1747658117088,400.0,0.00027397,120]
[361641992,1747658277881,-165.69,0.00012663,2]
[361641993,1747658277905,-2363.73,0.00012667,2]
[361641994,1747658277931,-167.51,0.00013044,2]
[361641995,1747658277957,-1200.0,0.00013099,2]
[361641996,1747658277982,-300.0,0.00013099,2]
[361641997,1747658278013,-23950.8821,0.000131,2]
[361641998,1747658278325,-281.2765666,0.0001351,2]
[361641999,1747658377745,-194.37,0.00012665,2]
[361642000,1747658381996,721.7,0.00010744,2]
[361642001,1747658488444,150.0,0.0001,60]
[361642003,1747658780367,435.0,0.0002,30]
[361642005,1747658903769,194.37,0.00010107,2]
[361642008,1747659032100,-872.74,0.00012593,2]
[361642009,1747659032110,-1000.0,0.00012636,2]
[361642010,1747659032119,-4269.16,0.00012646,2]
[361642011,1747659032128,-527.75,0.0001265,2]
[361642012,1747659032138,-1200.0,0.00012653,2]
[361642013,1747659032148,-2518.9,0.00012654,2]
[361642014,1747659032157,-1131.15,0.00012657,2]
[361642015,1747659032166,-300.0,0.00012661,2]
[361642016,1747659032176,-23900.0,0.00012663,2]
[361642017,1747659032185,-55.63,0.00012665,2]
[361642018,1747659032195,-721.7,0.00013008,2]
[361642019,1747659032205,-151.0,0.0001304,2]
[361642020,1747659032214,-548.47975202,0.0001304,2]
[361642021,1747659032224,-668.65185757,0.0001304,2]
[361642022,1747659032232,-207.4,0.0001304,2]
[361642023,1747659032242,-1869.0,0.000135,2]
[361642024,1747659032251,-267.2127383,0.0001351,2]
[361642025,1747659032261,-478.0230528,0.00013537,2]
[361642026,1747659032270,-165.69,0.00013567,2]
[361642027,1747659032280,-2103.4852,0.00013588,2]
[361642028,1747659032289,-3378.84934776,0.00013588,2]
[361642029,1747659032299,-10230.0,0.00013593,2]
[361642030,1747659032308,-150.0,0.00013596,2]
[361642031,1747659032317,-3662.3014,0.00013597,2]
[361642032,1747659032326,-4635.03,0.00013598,2]
[361642033,1747659032335,-162.48523969,0.00013598,2]
[361642034,1747659032345,-164.45490871,0.00013598,2]
[361642035,1747659032355,-3754.48141729,0.00013598,2]
[361642036,1747659032364,-3378.84934769,0.00013623,2]
[361642037,1747659032374,-3754.48141728,0.00013632,2]
[361642038,1747659032383,-200.0,0.00013632,2]
[361642039,1747659032392,-150.0,0.00013644,2]
[361642040,1747659032402,-3378.84934769,0.00013657,2]
[361642041,1747659032412,-164.45490868,0.00013658,2]
[361642042,1747659032422,-3754.48141728,0.00013665,2]
[361642043,1747659032432,-535.04581877,0.00013673,2]
[361642044,1747659032442,-300.0,0.00013673,2]
[361642045,1747659032452,-174.539,0.00013673,2]
[361642046,1747659032462,-162.86206272,0.00013673,2]
[361642047,1747659032472,-500.0,0.00013673,2]
[361642048,1747659032481,-369.60153046,0.00013673,2]
[361642049,1747659032491,-500.0,0.00013673,2]
[361642050,1747659032501,-166.38584162,0.00013673,2]
[361642051,1747659032511,-500.0,0.00013673,2]
[361642052,1747659032521,-500.0,0.00013673,2]
[361642053,1747659032530,-165.35966238,0.00013673,2]
[361642054,1747659032541,-500.0,0.00013673,2]
[361642055,1747659032551,-2165.188,0.00013673,2]
[361642056,1747659032560,-161.19,0.00013678,2]
[361642057,1747659032570,-161.19,0.00013688,2]
[361642058,1747659032580,-161.19,0.00013688,2]
[361642059,1747659032589,-161.19,0.00013688,2]
[361642060,1747659032598,-161.19,0.00013688,2]
[361642061,1747659032609,-42801.7309727,0.00013688,2]
[361642062,1747659032619,-9182.4352267,0.00013688,2]
[361642063,1747659032629,-24797.0067147,0.00013688,2]
[361642064,1747659032639,-6810.4942144,0.00013688,2]
[361642065,1747659032649,-67387.5221803,0.00013688,2]
[361642066,1747659032659,-192.27324613,0.00013688,2]
[361642067,1747659032668,-3378.84934769,0.00013692,2]
[361642068,1747659032677,-6692.18374818,0.00013697,2]
[361642069,1747659032687,-168.934,0.00013697,2]
[361642070,1747659032696,-962.0,0.00013698,2]
[361642071,1747659032706,-546.8695178,0.00013698,2]
[361642072,1747659032716,-178640.95955844,0.00013698,2]
[361642073,1747659037054,-1766.04918061,0.00013698,2]
[361642074,1747659037068,-529.44202323,0.00013698,2]
[361642075,1747659037203,-720.04,0.00013698,2]
[361642077,1747659037215,-2618.51640823,0.00013698,2]
[361642138,1747659038056,-500.0,0.00013698,2]
[361642140,1747659038263,-563.94852852,0.00013698,2]
[361642141,1747659038319,-711.441254,0.00013698,2]
[361642142,1747659038364,-1728.65,0.00013698,2]
[361642174,1747659040318,-706.07341574,0.00013698,2]
[361642175,1747659040528,-34039.8212515,0.00013698,2]
[361642176,1747659040549,-1289.7744,0.00013698,2]
[361642177,1747659040573,-73597.58194514,0.00013698,2]
[361642178,1747659040602,-31099.14904462,0.00013698,2]
[361642179,1747659040612,-151.0,0.00013698,2]
[361642180,1747659040621,-151.0,0.00013698,2]
[361642181,1747659040630,-151.52364,0.00013698,2]
[361642182,1747659040640,-151.0,0.00013698,2]
[361642183,1747659040649,-151.0,0.00013698,2]
[361642184,1747659040659,-151.0,0.00013698,2]
[361642185,1747659040668,-151.0,0.00013698,2]
[361642186,1747659040678,-151.0,0.00013698,2]
[361642187,1747659040687,-151.0,0.00013698,2]
[361642188,1747659040697,-151.0,0.00013698,2]
[361642189,1747659040706,-151.0,0.00013698,2]
[361642190,1747659040715,-151.0,0.00013698,2]
[361642191,1747659040724,-151.0,0.00013698,2]
[361642192,1747659040733,-151.0,0.00013698,2]
[361642193,1747659040742,-151.0,0.00013698,2]
[361642194,1747659040752,-151.0,0.00013698,2]
[361642195,1747659040761,-151.0,0.00013698,2]
[361642196,1747659040770,-151.0,0.00013698,2]
[361642197,1747659040779,-151.0,0.00013698,2]
[361642199,1747659040788,-151.0,0.00013698,2]
[361642201,1747659040798,-151.0,0.00013698,2]
[361642203,1747659040806,-151.0,0.00013698,2]
[361642205,1747659040816,-151.0,0.00013698,2]
[361642207,1747659040825,-151.0,0.00013698,2]
[361642209,1747659040834,-151.959101,0.00013698,2]
[361642210,1747659040844,-151.0,0.00013698,2]
[361642211,1747659040853,-151.0,0.00013698,2]
[361642212,1747659040863,-151.0,0.00013698,2]
[361642213,1747659040872,-151.0,0.00013698,2]
[361642214,1747659040882,-151.0,0.00013698,2]
[361642215,1747659040891,-151.0,0.00013698,2]
[361642216,1747659040900,-151.0,0.00013698,2]
[361642217,1747659040910,-151.0,0.00013698,2]
[361642218,1747659040919,-151.0,0.00013698,2]
[361642219,1747659040928,-151.0,0.00013698,2]
[361642220,1747659040937,-221.139319,0.00013698,2]
[361642221,1747659040946,-151.0,0.00013698,2]
[361642222,1747659040956,-151.0,0.00013698,2]
[361642223,1747659040966,-151.0,0.00013698,2]
[361642224,1747659040975,-151.0,0.00013698,2]
[361642225,1747659040984,-151.0,0.00013698,2]
[361642226,1747659040994,-151.0,0.00013698,2]
[361642227,1747659041005,-151.0,0.00013698,2]
[361642228,1747659041015,-151.0,0.00013698,2]
[361642229,1747659041023,-151.0,0.00013698,2]
[361642230,1747659041032,-151.0,0.00013698,2]
[361642231,1747659041042,-400.0,0.00013698,2]
[361642232,1747659041052,-151.0,0.00013698,2]
[361642233,1747659041062,-400.0,0.00013698,2]
[361642234,1747659041071,-325.62048889,0.00013698,2]
[361642235,1747659041080,-462.51915197,0.00013698,2]
[361642236,1747659041090,-151.0,0.00013698,2]
[361642237,1747659041100,-220.952852,0.00013698,2]
[361642238,1747659041109,-158.96779388,0.00013698,2]
[361642239,1747659041118,-400.0,0.00013698,2]
[361642240,1747659041129,-431.05390832,0.00013698,2]